bitfinex/quotes_SOLUSD_20240926
["timestamp","ask_amount","ask_price","bid_price","bid_amount"]
[1727366055856,6.62577089,157.4,157.39,6.3536]
[1727366056065,6.62577089,157.4,157.29,20.12549]
[1727366056066,0.1930287,157.41,157.33,31.10974753]
[1727366056255,0.1930287,157.41,157.3,31.10974753]
[1727366056558,43.8517287,157.41,157.27,14.4793]
[1727366056732,43.8517287,157.41,157.34,6.3556]
[1727366056932,6.3536,157.4,157.34,6.3556]
[1727366057141,20.0,157.39,157.34,6.3556]
[1727366057354,20.0,157.4,157.32,6.356]
[1727366057563,6.3556,157.34,157.29,6.3573]
[1727366057762,20.0,157.38,157.27,12.3097677]
[1727366057965,20.0,157.38,157.28,1.27121988]
[1727366058147,20.0,157.38,157.28,32.38096741]
[1727366058535,20.0,157.4,157.28,31.10974753]
[1727366058854,20.0,157.37,157.33,6.356]
[1727366060855,20.0,157.4,157.28,31.10974753]
[1727366061045,30.381464,157.39,157.34,6.3556]
[1727366061243,26.3533,157.4,157.35,6.3552]
[1727366061637,26.3533,157.4,157.34,6.3555]
[1727366061638,20.0,157.38,157.34,6.3555]
[1727366063458,20.0,157.4,157.36,6.3547]
[1727366063662,20.0,157.4,157.29,0.25098]
[1727366063663,26.3533,157.4,157.35,6.3551]
[1727366064081,6.354,157.38,157.33,6.3559]
[1727366064378,6.3557,157.34,157.29,6.3574]
[1727366064548,6.3557,157.34,157.29,6.3576]
[1727366064969,6.3557,157.34,157.27,0.0982677]
[1727366065167,6.3557,157.34,157.31,6.3568]
[1727366065168,20.0,157.34,157.31,6.3568]
[1727366066155,20.0,157.36,157.27,0.0982677]
[1727366066360,20.0,157.34,157.27,0.0982677]
[1727366066563,20.0,157.3,157.27,0.0982677]
[1727366067640,6.3577,157.29,157.27,0.0982677]
[1727366067865,6.3573,157.3,157.27,0.0982677]
[1727366068549,50.133784,157.31,157.27,0.0982677]
[1727366068740,6.3561,157.33,157.28,6.3578]
[1727366069151,23.902374,157.35,157.27,1.36993033]
[1727366069353,6.3556,157.34,157.3,6.3572]
[1727366069554,6.3553,157.35,157.3,6.3572]
[1727366070069,6.3556,157.34,157.29,6.3576]
[1727366070664,20.0,157.33,157.29,6.3576]
[1727366070972,20.0,157.33,157.3,6.3571]
[1727366071171,20.0,157.33,157.29,6.3575]
[1727366071362,45.28749,157.36,157.27,0.0982677]
[1727366071670,6.3574,157.3,157.27,0.0982677]
[1727366071851,6.3564,157.33,157.27,6.4565677]
[1727366072377,6.3564,157.33,157.23,20.0]
[1727366072378,6.3565,157.32,157.28,6.358]
[1727366072975,24.027864,157.33,157.27,6.3584]
[1727366073168,6.3569,157.31,157.27,6.3584]
[1727366073572,24.027864,157.33,157.27,6.3584]
[1727366073782,6.3565,157.32,157.27,6.3584]
[1727366074793,26.3557,157.34,157.29,6.3576]
[1727366074995,6.356,157.33,157.29,6.3576]
[1727366075304,6.3571,157.31,157.27,6.3583]
[1727366075796,6.3578,157.29,157.25,0.2549821]
[1727366076001,6.3584,157.28,157.25,0.2549821]
[1727366076154,15.8918,157.32,157.25,0.2549821]
[1727366076155,6.3586,157.27,157.25,0.2549821]
[1727366076559,15.8918,157.32,157.25,0.2549821]
[1727366076560,24.027864,157.31,157.25,0.2549821]
[1727366076758,6.3586,157.27,157.25,0.2549821]
[1727366077959,20.25098,157.31,157.25,0.2549821]
[1727366078164,6.3581,157.28,157.25,0.2549821]
[1727366078571,20.0,157.28,157.25,0.2549821]
[1727366078773,26.3581,157.28,157.25,0.2549821]
[1727366079375,20.0,157.3,157.25,0.2549821]
[1727366079787,6.3579,157.29,157.25,0.2549821]
[1727366079973,30.134784,157.29,157.25,0.2549821]
[1727366081070,20.0,157.3,157.25,6.6140821]
[1727366081280,26.3574,157.3,157.25,6.6140821]
[1727366081498,26.3574,157.3,157.26,6.3587]
[1727366081878,26.3574,157.3,157.25,6.6140821]
[1727366082877,6.3579,157.29,157.25,0.2549821]
[1727366083187,20.0,157.29,157.25,6.6139821]
[1727366083378,20.0,157.29,157.25,0.2549821]
[1727366083583,20.0,157.29,157.26,6.3588]
[1727366083875,20.0,157.32,157.25,0.2549821]
[1727366084086,6.358,157.29,157.25,0.2549821]
[1727366084686,6.3581,157.28,157.25,0.2549821]
[1727366084870,6.3586,157.27,157.25,0.2549821]
[1727366085295,6.3588,157.26,157.25,0.2549821]
[1727366086371,20.0,157.29,157.25,0.2549821]
[1727366086581,26.358,157.29,157.25,6.6139821]
[1727366087069,6.358,157.28,157.25,0.2549821]
[1727366087995,50.386664,157.26,157.25,0.2549821]
[1727366099805,50.386664,157.26,157.14,46.5517]
[1727366099806,44.027864,157.25,157.11,20.2570099]
[1727366100004,44.027864,157.25,157.14,6.3637]
[1727366100005,6.362,157.19,157.14,6.3637]
[1727366100306,44.027864,157.21,157.11,0.2570099]
[1727366100602,6.3625,157.18,157.14,6.3637]
[1727366101901,6.3617,157.2,157.13,1.27266553]
[1727366102107,6.3617,157.2,157.12,19.46917029]
[1727366102108,6.3617,157.19,157.15,6.3633]
[1727366102304,6.3623,157.18,157.14,6.3636]
[1727366102491,6.3625,157.17,157.11,0.2570099]
[1727366102678,6.3625,157.17,157.13,6.3641]
[1727366103000,6.3625,157.17,157.11,0.2570099]
[1727366103001,19.24549,157.18,157.11,0.2570099]
[1727366103177,23.776884,157.12,157.11,0.2570099]
[1727366103374,20.0,157.13,157.11,0.2570099]
[1727366103602,26.48879,157.16,157.11,0.2570099]
[1727366103793,26.3633,157.16,157.11,6.6219099]
[1727366104186,26.3633,157.16,157.11,0.2570099]
[1727366104187,23.902374,157.15,157.11,0.2570099]
[1727366104384,26.3633,157.16,157.11,0.2570099]
[1727366104610,26.3633,157.16,157.11,6.6218099]
[1727366104781,23.776884,157.17,157.13,6.3641]
[1727366104980,6.3628,157.17,157.11,6.6215099]
[1727366105299,20.12549,157.22,157.12,1.27290941]
[1727366105507,6.3621,157.18,157.13,6.3641]
[1727366106386,6.3621,157.18,157.11,0.2570099]
[1727366106387,6.3628,157.17,157.12,6.3644]
[1727366107578,6.3628,157.17,157.13,6.3641]
[1727366108078,45.6804,157.23,157.13,31.15733419]
[1727366108506,45.6804,157.23,157.14,1.27252154]
[1727366108682,45.6804,157.23,157.13,31.15733419]
[1727366108884,6.3605,157.22,157.18,6.362]
[1727366109084,6.3605,157.22,157.17,6.3624]
[1727366109921,44.027864,157.22,157.15,6.363]
[1727366110087,44.027864,157.22,157.16,6.3629]
[1727366110289,50.388364,157.22,157.17,6.3624]
[1727366110488,6.361,157.21,157.16,6.3628]
[1727366111695,50.388364,157.22,157.17,6.3624]
[1727366111916,6.3597,157.24,157.2,6.3613]
[1727366112108,6.3597,157.24,157.16,31.15733419]
[1727366112109,6.3593,157.25,157.16,31.15733419]
[1727366112398,43.0950099,157.27,157.2,6.3612]
[1727366112399,6.3597,157.24,157.2,6.3612]
[1727366112598,15.8994,157.24,157.14,31.9798]
[1727366112896,6.3616,157.2,157.16,6.3629]
[1727366114908,6.3613,157.2,157.15,6.3629]
[1727366115196,6.361,157.21,157.17,6.3624]
[1727366115395,6.361,157.21,157.14,31.15733419]
[1727366115396,20.0,157.26,157.14,31.15733419]
[1727366115719,6.361,157.21,157.16,6.3628]
[1727366116716,6.3604,157.23,157.14,31.15733419]
[1727366117005,6.3598,157.24,157.15,1.27235944]
[1727366117822,43.0950099,157.27,157.14,31.28282419]
[1727366118195,6.3597,157.24,157.14,31.15733419]
[1727366118400,20.0,157.23,157.14,31.15733419]
[1727366118816,6.3601,157.23,157.14,31.15733419]
[1727366119617,26.359,157.26,157.17,31.15733419]
[1727366119805,20.0,157.26,157.17,31.15733419]
[1727366120012,49.4535099,157.27,157.17,31.15733419]
[1727366120213,6.359,157.26,157.17,31.15733419]
[1727366120924,0.2570099,157.27,157.23,31.15733419]
[1727366123031,0.2570099,157.27,157.24,1.27163674]
[1727366123204,0.2570099,157.27,157.23,31.15733419]
[1727366124221,0.2570099,157.27,157.24,1.27180841]
[1727366127229,0.2570099,157.27,157.23,31.15733419]
[1727366127739,0.2570099,157.27,157.2,31.15733419]
[1727366127907,6.6156099,157.27,157.2,31.15733419]
[1727366128337,6.6156099,157.27,157.2,19.44850579]
[1727366129236,6.3589,157.26,157.2,19.44850579]
[1727366130425,6.3593,157.25,157.18,19.44850579]
[1727366130624,0.2570099,157.27,157.18,19.44850579]
[1727366130810,0.2570099,157.27,157.22,19.44850579]
[1727366131014,6.6155099,157.27,157.22,19.44850579]
[1727366131636,0.2570099,157.27,157.22,19.44850579]
[1727366132012,6.6156099,157.27,157.22,19.44850579]
[1727366132541,1.0,157.26,157.22,19.44850579]
[1727366133238,0.2570099,157.27,157.22,19.44850579]
[1727366133441,6.3589,157.26,157.22,19.44850579]
[1727366133819,6.6156099,157.27,157.22,19.44850579]
[1727366134136,0.2570099,157.27,157.22,19.44850579]
[1727366134939,7.3589,157.26,157.18,19.44850579]
[1727366135318,6.3589,157.26,157.18,19.44850579]
[1727366135633,6.361,157.21,157.15,1.27206137]
[1727366135845,23.776884,157.23,157.14,19.44850579]
[1727366136137,1.0,157.22,157.14,19.44850579]
[1727366136314,23.776884,157.23,157.15,1.27247116]
[1727366137221,6.3602,157.23,157.16,19.44850579]
[1727366137543,44.9702,157.24,157.18,19.44850579]
[1727366137544,51.3299,157.24,157.18,19.44850579]
[1727366137839,0.2570099,157.27,157.2,19.44850579]
[1727366138216,6.3592,157.26,157.16,20.25098]
[1727366138419,7.3594,157.25,157.19,19.44850579]
[1727366138734,0.2570099,157.27,157.19,19.44850579]
[1727366139036,0.2570099,157.27,157.21,19.44850579]
[1727366139237,6.6155099,157.27,157.21,19.44850579]
[1727366140838,0.2570099,157.27,157.23,19.44850579]
[1727366141218,6.6155099,157.27,157.2,19.44850579]
[1727366142640,7.3589,157.26,157.19,19.44850579]
[1727366142943,6.6155099,157.27,157.19,19.44850579]
[1727366143141,6.6155099,157.27,157.23,19.44850579]
[1727366143142,0.2570099,157.27,157.23,19.44850579]
[1727366143324,0.2570099,157.27,157.25,19.44850579]
[1727366143516,0.2570099,157.27,157.26,1.27163924]
[1727366143748,0.2570099,157.27,157.25,19.44850579]
[1727366144049,0.2570099,157.27,157.23,19.44850579]
[1727366145516,0.2570099,157.27,157.24,1.27178002]
[1727366145915,0.2570099,157.27,157.17,43.776884]
[1727366145916,0.2570099,157.27,157.17,20.0]
[1727366146131,6.3598,157.24,157.17,20.0]
[1727366146333,6.3598,157.24,157.16,30.4761]
[1727366146334,6.3589,157.26,157.19,19.44850579]
[1727366146647,6.3596,157.25,157.19,19.44850579]
[1727366147027,6.3589,157.26,157.2,1.27208742]
[1727366147227,6.3589,157.26,157.19,19.44850579]
[1727366147632,6.3589,157.26,157.2,1.27208719]
[1727366148229,6.3589,157.26,157.19,19.44850579]
[1727366148426,1.0,157.25,157.19,19.44850579]
[1727366148647,0.2570099,157.27,157.19,19.44850579]
[1727366148825,0.2570099,157.27,157.16,30.4761]
[1727366148826,6.3601,157.24,157.17,19.44850579]
[1727366149026,7.3601,157.23,157.17,19.44850579]
[1727366149331,1.0,157.22,157.17,19.44850579]
[1727366149523,7.3605,157.22,157.15,19.44850579]
[1727366149741,6.3601,157.23,157.16,1.27232057]
[1727366149940,43.6567,157.25,157.17,19.44850579]
[1727366150539,6.3597,157.24,157.17,19.44850579]
[1727366150732,43.6567,157.25,157.17,19.44850579]
[1727366150933,43.6567,157.25,157.18,1.2721687]
[1727366151254,0.2570099,157.27,157.21,19.44850579]
[1727366152556,0.2570099,157.27,157.23,19.44850579]
[1727366152758,0.2570099,157.27,157.24,1.271667]
[1727366152931,0.2570099,157.27,157.23,19.44850579]
[1727366155038,6.6155099,157.27,157.23,19.44850579]
[1727366155356,1.0,157.26,157.21,19.44850579]
[1727366155561,7.359,157.26,157.19,19.44850579]
[1727366155765,7.3589,157.26,157.19,19.44850579]
[1727366156354,1.0,157.25,157.19,19.44850579]
[1727366157655,6.3601,157.23,157.15,20.0]
[1727366157828,1.0,157.22,157.16,19.44850579]
[1727366158034,25.027864,157.26,157.16,19.44850579]
[1727366158271,23.776884,157.26,157.18,19.44850579]
[1727366158433,23.776884,157.26,157.19,1.27210141]
[1727366158939,30.135784,157.26,157.19,1.27210141]
[1727366159431,6.3589,157.26,157.2,19.44850579]
[1727366159634,6.6156099,157.27,157.21,1.27201632]
[1727366160057,0.2570099,157.27,157.2,19.44850579]
[1727366160269,0.12549,157.26,157.18,19.44850579]
[1727366160561,6.3589,157.26,157.19,1.27221169]
[1727366160740,0.2570099,157.27,157.19,1.27221169]
[1727366161250,6.6155099,157.27,157.19,1.27221169]
[1727366162947,0.2570099,157.27,157.19,21.27221169]
[1727366163147,0.2570099,157.27,157.21,31.12973299]
[1727366164357,0.2570099,157.27,157.22,1.2717446]
[1727366164961,0.2570099,157.27,157.21,31.12973299]
[1727366165462,0.2570099,157.27,157.24,31.12973299]
[1727366165777,0.2570099,157.27,157.25,1.27154497]
[1727366166465,0.2570099,157.27,157.25,0.25098]
[1727366166840,44.2747,157.33,157.26,1.27126207]
[1727366167043,44.2747,157.33,157.3,31.12973299]
[1727366167254,44.2747,157.33,157.31,1.2712062]
[1727366167762,44.2747,157.33,157.3,31.12973299]
[1727366168071,44.1745099,157.37,157.3,31.12973299]
[1727366168238,44.1745099,157.37,157.31,1.2710762]
[1727366168445,44.1745099,157.37,157.3,31.12973299]
[1727366168644,44.1745099,157.37,157.31,1.27107517]
[1727366169740,44.1745099,157.37,157.31,25.29893917]
[1727366170538,44.1745099,157.37,157.32,24.027864]
[1727366170539,0.2570099,157.37,157.32,24.027864]
[1727366170762,0.2570099,157.37,157.36,31.12973299]
[1727366170964,0.2570099,157.37,157.36,32.40030705]
[1727366171170,0.2570099,157.37,157.36,31.12973299]
[1727366171957,0.2570099,157.37,157.33,51.25522299]
[1727366172347,0.2570099,157.37,157.3,31.12973299]
[1727366172571,0.2570099,157.37,157.27,31.12973299]
[1727366173679,1.2570099,157.37,157.27,31.12973299]
[1727366173979,7.6115099,157.37,157.27,31.12973299]
[1727366174167,6.355,157.36,157.27,31.12973299]
[1727366174481,7.3552,157.35,157.28,20.0]
[1727366174696,6.3549,157.36,157.28,20.0]
[1727366175050,6.6114099,157.37,157.3,31.12973299]
[1727366175258,0.2570099,157.37,157.31,1.27104422]
[1727366176453,0.2570099,157.37,157.33,31.12973299]
[1727366176654,0.2570099,157.37,157.34,1.2707774]
[1727366177576,0.2570099,157.37,157.33,31.12973299]
[1727366179289,0.2570099,157.37,157.34,1.27086676]
[1727366179673,0.2570099,157.37,157.36,31.12973299]
[1727366180480,0.2570099,157.37,157.36,59.06034024]
[1727366180787,0.1994588,157.4,157.37,20.25098]
[1727366180963,0.1994588,157.4,157.39,19.40468012]
[1727366181163,0.1994588,157.4,157.39,19.65566012]
[1727366181482,0.2570099,157.46,157.41,19.40468012]
[1727366181786,0.2570099,157.46,157.43,19.40468012]
[1727366182474,0.2570099,157.46,157.43,31.26743992]
[1727366182663,0.2570099,157.46,157.44,1.26990843]
[1727366182861,0.2570099,157.46,157.43,31.01645992]
[1727366183063,0.2570099,157.46,157.4,31.01645992]
[1727366183271,1.0,157.48,157.37,20.0]
[1727366183272,6.3516,157.45,157.37,20.0]
[1727366183480,0.0725829,157.46,157.37,20.0]
[1727366183756,1.0725829,157.46,157.37,20.0]
[1727366183955,6.352,157.43,157.37,20.0]
[1727366184186,1.0,157.42,157.36,31.01645992]
[1727366184361,43.4735,157.42,157.36,31.01645992]
[1727366184684,43.4735,157.42,157.33,31.01645992]
[1727366184685,6.3529,157.41,157.33,31.01645992]
[1727366184889,49.826,157.42,157.33,31.01645992]
[1727366185074,49.826,157.42,157.34,0.12549]
[1727366186090,6.3531,157.41,157.34,20.0]
[1727366186772,49.826,157.42,157.34,20.0]
[1727366186975,49.826,157.42,157.33,31.01645992]
[1727366187381,1.0,157.41,157.33,31.01645992]
[1727366187597,7.353,157.41,157.33,31.01645992]
[1727366187769,6.353,157.41,157.33,31.01645992]
[1727366187965,6.353,157.41,157.34,1.27077655]
[1727366188190,49.8262,157.42,157.34,1.27077655]
[1727366188397,43.4735,157.42,157.34,1.27077655]
[1727366188976,43.4735,157.42,157.33,31.01645992]
[1727366188977,7.3531,157.41,157.33,31.01645992]
[1727366189171,1.0,157.41,157.33,31.01645992]
[1727366189385,6.354,157.39,157.31,20.193575]
[1727366189598,1.0,157.38,157.31,20.193575]
[1727366189989,6.354,157.39,157.31,20.193575]
[1727366190188,43.4735,157.42,157.32,1.27093971]
[1727366190377,49.826,157.42,157.33,31.01645992]
[1727366190579,49.826,157.42,157.34,1.27071137]
[1727366190795,43.4735,157.42,157.34,1.27071137]
[1727366191388,43.4735,157.42,157.36,31.01645992]
[1727366191778,49.8263,157.42,157.36,31.01645992]
[1727366192190,43.4735,157.42,157.37,1.2706643]
[1727366192596,43.4735,157.42,157.36,31.01645992]
[1727366192797,43.4735,157.42,157.39,31.01645992]
[1727366193490,49.8259,157.42,157.36,31.01645992]
[1727366193682,43.4735,157.42,157.36,31.01645992]
[1727366194382,1.0,157.41,157.34,20.0]
[1727366194586,6.3529,157.41,157.33,31.01645992]
[1727366195094,1.0,157.41,157.31,0.193575]
[1727366195286,1.0,157.41,157.31,20.193575]
[1727366195482,1.0,157.41,157.32,1.2708003]
[1727366195483,6.3529,157.41,157.32,1.2708003]
[1727366195690,6.3529,157.41,157.33,31.01645992]
[1727366195894,6.3529,157.41,157.34,1.27079967]
[1727366196197,49.8262,157.42,157.33,31.01645992]
[1727366196696,49.8262,157.42,157.34,0.12549]
[1727366196881,43.4735,157.42,157.36,31.01645992]
[1727366197081,43.4735,157.42,157.37,1.27054667]
[1727366198269,49.8259,157.42,157.36,31.01645992]
[1727366198474,43.4735,157.42,157.37,1.27067323]
[1727366201400,43.4735,157.42,157.36,31.01645992]
[1727366201599,43.4735,157.42,157.37,1.27049697]
[1727366201906,43.4735,157.42,157.36,31.01645992]
[1727366202802,43.4735,157.42,157.37,1.27049799]
[1727366202997,43.4735,157.42,157.39,31.01645992]
[1727366203197,0.0725829,157.43,157.4,1.27040113]
[1727366203812,0.0725829,157.43,157.39,31.01645992]
[1727366203983,0.0725829,157.43,157.4,1.27031396]
[1727366204584,0.0725829,157.43,157.38,0.12549]
[1727366204787,0.0725829,157.43,157.39,31.01645992]
[1727366205001,0.0725829,157.43,157.4,1.27027551]
[1727366205193,0.0725829,157.43,157.4,0.25098]
[1727366205685,0.0725829,157.43,157.42,31.01645992]
[1727366206912,0.0725829,157.43,157.42,32.28661634]
[1727366208401,0.4656167,157.49,157.42,19.38691213]
[1727366208624,0.4656167,157.49,157.43,0.25098]
[1727366208807,0.4656167,157.49,157.42,19.38691213]
[1727366208808,1.4656167,157.49,157.42,19.38691213]
[1727366209502,0.4656167,157.49,157.42,19.38691213]
[1727366209715,0.4656167,157.49,157.42,18.38691213]
[1727366211716,0.4656167,157.49,157.43,1.27004271]
[1727366212514,0.4656167,157.49,157.47,19.38691213]
[1727366213407,1.4656167,157.49,157.44,19.38691213]
[1727366213595,1.4656167,157.49,157.42,19.38691213]
[1727366213804,6.3507,157.47,157.4,19.38691213]
[1727366214114,1.4656167,157.49,157.4,19.38691213]
[1727366214115,6.3503,157.48,157.4,19.38691213]
[1727366214304,0.4656167,157.49,157.4,19.38691213]
[1727366214305,7.3508,157.47,157.4,19.38691213]
[1727366214501,21.4656167,157.49,157.42,19.38691213]
[1727366214715,20.4656167,157.49,157.44,19.38691213]
[1727366215130,0.4656167,157.49,157.44,19.38691213]
[1727366215302,6.8152167,157.49,157.44,19.38691213]
[1727366215502,1.0,157.48,157.42,19.38691213]
[1727366215807,1.0,157.48,157.4,19.38691213]
[1727366215998,6.3516,157.44,157.38,19.38691213]
[1727366216795,50.7703,157.46,157.39,1.27057897]
[1727366216995,44.4194,157.46,157.42,19.38691213]
[1727366217894,44.4194,157.46,157.4,19.38691213]
[1727366217895,1.0,157.45,157.4,19.38691213]
[1727366218098,21.0,157.45,157.38,19.38691213]
[1727366218405,44.4194,157.46,157.4,31.03074201]
[1727366218598,44.4194,157.46,157.41,1.27035224]
[1727366218802,44.4194,157.46,157.4,31.03074201]
[1727366219924,1.0,157.45,157.4,31.03074201]
[1727366220123,44.4194,157.46,157.4,31.03074201]
[1727366220526,44.4194,157.46,157.41,1.27038282]
[1727366221121,44.4194,157.46,157.43,31.03074201]
[1727366221325,44.4194,157.46,157.44,1.27015132]
[1727366221806,44.4194,157.46,157.43,31.03074201]
[1727366222207,44.4194,157.46,157.4,31.03074201]
[1727366222423,1.0,157.45,157.4,31.03074201]
[1727366222623,44.4194,157.46,157.37,20.0]
[1727366222937,44.4194,157.46,157.4,20.0]
[1727366223118,44.4194,157.46,157.41,1.27025309]
[1727366223623,44.4194,157.46,157.42,31.03074201]
[1727366224609,44.4194,157.46,157.43,1.27013982]
[1727366224806,13.6911167,157.49,157.45,31.03074201]
[1727366225207,13.6911167,157.49,157.48,31.03074201]
[1727366225538,0.2661579,157.53,157.48,51.15623201]
[1727366225831,0.2661579,157.53,157.51,31.03074201]
[1727366227429,0.2661579,157.53,157.51,32.30030607]
[1727366227611,0.2661579,157.53,157.51,31.03074201]
[1727366228932,1.2661579,157.53,157.48,31.03074201]
[1727366229124,1.2661579,157.53,157.49,20.0]
[1727366229634,0.2661579,157.53,157.49,20.0]
[1727366230508,0.2661579,157.53,157.5,1.26968486]
[1727366230713,0.2661579,157.53,157.51,31.03074201]
[1727366231213,0.2661579,157.53,157.52,1.26956113]
[1727366231431,0.2661579,157.53,157.51,31.03074201]
[1727366234509,0.2661579,157.53,157.52,1.2695831]
[1727366234713,0.2661579,157.53,157.51,31.03074201]
[1727366235529,0.2661579,157.53,157.52,1.26957488]
[1727366235825,0.2661579,157.53,157.51,31.03074201]
[1727366237736,0.2661579,157.53,157.52,1.26956265]
[1727366237925,0.2661579,157.53,157.51,31.03074201]
[1727366240333,0.2661579,157.53,157.51,19.37055872]
[1727366241146,0.2661579,157.53,157.52,1.26957447]
[1727366242741,0.2661579,157.53,157.47,19.37055872]
[1727366243147,0.2661579,157.53,157.49,19.37055872]
[1727366243333,0.2661579,157.53,157.51,19.37055872]
[1727366243653,0.2661579,157.53,157.52,1.26951288]
[1727366243851,26.346,157.58,157.51,19.37055872]
[1727366244059,0.2204183,157.53,157.51,19.37055872]
[1727366244839,0.2204183,157.53,157.52,1.26956849]
[1727366245427,0.2204183,157.53,157.51,19.37055872]
[1727366247359,0.2204183,157.53,157.52,1.26959281]
[1727366248427,0.2204183,157.53,157.52,21.26959281]
[1727366248647,0.2204183,157.53,157.52,20.0]
[1727366249033,0.2204183,157.53,157.52,21.26932036]
[1727366249241,0.3730533,157.57,157.52,21.39481036]
[1727366249445,0.3730533,157.57,157.56,19.37055872]
[1727366254965,0.3730533,157.57,157.56,19.49604872]
[1727366255136,0.2549585,157.61,157.59,20.0]
[1727366255336,0.2549585,157.61,157.6,20.63930246]
[1727366255756,0.2549585,157.61,157.6,19.37055872]
[1727366257462,0.2549585,157.61,157.6,20.63931985]
[1727366257656,0.2549585,157.61,157.6,19.37055872]
[1727366258163,42.4797,157.6,157.54,19.37055872]
[1727366258859,1.0,157.59,157.54,19.37055872]
[1727366259060,1.0,157.59,157.52,19.37055872]
[1727366259263,6.346,157.58,157.52,19.37055872]
[1727366259464,1.0,157.57,157.5,19.37055872]
[1727366259759,1.0,157.57,157.45,33.30168309]
[1727366259760,6.3473,157.55,157.48,19.37055872]
[1727366259962,6.3471,157.56,157.48,19.37055872]
[1727366260135,6.3472,157.55,157.48,19.37055872]
[1727366260336,24.027864,157.58,157.49,1.26974508]
[1727366260654,20.0,157.56,157.48,19.37055872]
[1727366260844,6.3467,157.57,157.48,19.37055872]
[1727366261244,20.0,157.56,157.48,19.37055872]
[1727366261452,26.3468,157.56,157.48,19.37055872]
[1727366261876,6.3464,157.57,157.49,21.26966456]
[1727366262047,42.4797,157.6,157.5,19.37055872]
[1727366262366,6.3463,157.58,157.51,1.26955975]
[1727366262874,20.0,157.59,157.52,19.37055872]
[1727366263167,26.3456,157.59,157.53,1.26945294]
[1727366263370,26.3456,157.59,157.52,19.37055872]
[1727366263861,26.3456,157.59,157.53,1.26945533]
[1727366264371,26.3456,157.59,157.52,19.37055872]
[1727366264546,26.3456,157.59,157.53,1.26945501]
[1727366264861,6.3456,157.59,157.52,19.37055872]
[1727366265063,7.346,157.58,157.52,19.37055872]
[1727366265365,6.346,157.58,157.52,19.37055872]
[1727366266437,1.0,157.57,157.5,19.37055872]
[1727366266643,6.3468,157.56,157.49,20.0]
[1727366266843,7.3473,157.55,157.49,20.0]
[1727366267046,1.0,157.55,157.46,19.37055872]
[1727366267340,50.96419,157.54,157.46,19.37055872]
[1727366268346,6.348,157.53,157.46,19.37055872]
[1727366268763,44.491,157.54,157.46,19.37055872]
[1727366268962,50.8387,157.54,157.48,19.37055872]
[1727366269164,44.491,157.54,157.5,19.37055872]
[1727366270653,20.0,157.58,157.52,19.37055872]
[1727366270654,45.0966,157.58,157.52,19.37055872]
[1727366270872,45.0966,157.58,157.53,1.26947651]
[1727366271557,45.0966,157.58,157.53,1.26943627]
[1727366272471,45.0966,157.58,157.52,19.37055872]
[1727366273267,24.027864,157.57,157.45,0.2549585]
[1727366273471,24.027864,157.57,157.49,19.37055872]
[1727366273767,51.4426,157.58,157.51,19.37055872]
[1727366275661,51.4426,157.58,157.53,19.37055872]
[1727366275662,45.0966,157.58,157.53,19.37055872]
[1727366277172,45.0966,157.58,157.51,19.37055872]
[1727366277476,51.4429,157.58,157.51,19.37055872]
[1727366277850,6.3464,157.57,157.51,19.37055872]
[1727366278168,45.0966,157.58,157.51,19.37055872]
[1727366278352,51.4427,157.58,157.51,19.37055872]
[1727366278559,45.0966,157.58,157.51,19.37055872]
[1727366279369,6.3464,157.57,157.51,19.37055872]
[1727366280062,51.4426,157.58,157.52,1.26959761]
[1727366280243,51.4426,157.58,157.51,19.37055872]
[1727366281265,45.0966,157.58,157.51,19.37055872]
[1727366281456,45.0966,157.58,157.45,1.52451846]
[1727366281457,0.2549585,157.61,157.55,19.37055872]
[1727366281654,1.0,157.6,157.55,19.37055872]
[1727366281843,7.3452,157.6,157.53,19.37055872]
[1727366282051,1.0,157.6,157.51,19.37055872]
[1727366282286,6.346,157.58,157.51,19.37055872]
[1727366282569,6.3468,157.56,157.5,20.0]
[1727366282770,1.0,157.55,157.5,20.0]
[1727366283244,1.0,157.55,157.49,19.37055872]
[1727366283444,7.3472,157.55,157.49,19.37055872]
[1727366283650,6.3468,157.56,157.49,19.37055872]
[1727366284559,1.0,157.55,157.49,19.37055872]
[1727366284868,6.3468,157.56,157.49,19.37055872]